Cogmind - Beta 14 @@@ ROGUE MODE // 2025.05.03 @ 15:27:54 Player: Epsilon 11 Result: Destroyed by AH-HRW(R) with Subdweller Machine Gun Performance ------------- Evolutions (0) 0 Regions Visited (2) 400 Robots Destroyed (15) 75 Value Destroyed (475) 475 Prototype IDs (11) 220 Alien Tech Used (0) 0 Bonus (0) 0 TOTAL SCORE: 1170 Bonus ------- None Cogmind --------- Core Integrity 0/250 Matter 252/300 Energy 125/200 System Corruption 3% Temperature Cool (0) Movement Rolling (130) Ox2 Location -10/Subcaves Parts ------- > --- POWER (1) -------- Subdweller Power Source > --- PROPULSION (2) --- Subdweller Monowheel Subdweller Monowheel > --- UTILITY (2) ------ Disposable Heat Sink Huge Storage Unit > --- WEAPON (2) ------- Heavy Battle Rifle Battle Cannon > --- INVENTORY (25) --- Subdweller Power Source Wheel Compact Wheel High-capacity Storage Unit Humpback Large Battery (200) Structural Scanner Visual Processing Unit Subdweller Optics Improved Terrain Scanner Seismic Detector Gun Armor Makeshift System Restoration Module Makeshift Hammer Scrap Shield Fragment (49) Scrap Shield Fragment (49) Scrap Shield Fragment (49) Scrap Shield Fragment (48) Scrap Shield Fragment (47) Scrap Shield Fragment (47) Scrap Shield Fragment (40) Peak State ------------ > --- POWER ------------ Subdweller Power Source > --- PROPULSION ------- Subdweller Monowheel Subdweller Monowheel > --- UTILITY ---------- Disposable Heat Sink Huge Storage Unit > --- WEAPON ----------- Heavy Battle Rifle Battle Cannon > --- INVENTORY -------- Subdweller Power Source Wheel Compact Wheel High-capacity Storage Unit Humpback Large Battery Structural Scanner Visual Processing Unit Subdweller Optics Improved Terrain Scanner Seismic Detector Gun Armor Makeshift System Restoration Module Makeshift Hammer Scrap Shield Fragment Scrap Shield Fragment Scrap Shield Fragment Scrap Shield Fragment Scrap Shield Fragment Scrap Shield Fragment Scrap Shield Fragment [Rating: 19] Favorites ----------- Power Subdweller Power Source Engine Subdweller Power Source Propulsion Compact Wheel Wheel Compact Wheel Utility Huge Storage Unit Device Structural Scanner Storage Huge Storage Unit Weapon Subdweller Beam Cannon Energy Cannon Subdweller Beam Cannon Ballistic Gun Assault Rifle Ballistic Cannon Battle Cannon Build | -11 -10 -10 ------- Run | Yrd Mat Sub Slots Evolved . | . . . Power . | . . . Propulsion . | . . . Utility . | . . . Weapon . | . . . Parts Attached 29 | 7 3 19 Power 3 | 1 . 2 Engine 3 | 1 . 2 Core . | . . . Reactor . | . . . Propulsion 11 | 2 . 9 Treads . | . . . Leg . | . . . Wheel 11 | 2 . 9 Hover . | . . . Flight . | . . . Utility 8 | 2 3 3 Device 5 | 1 1 3 Storage 3 | 1 2 . Processor . | . . . Hackware . | . . . Protection . | . . . Artifact . | . . . Weapon 7 | 2 . 5 Energy Gun . | . . . Energy Cannon 3 | . . 3 Ballistic Gun 3 | 2 . 1 Ballistic Cannon 1 | . . 1 Launcher . | . . . Special Weapon . | . . . Impact Weapon . | . . . Slashing Weapon . | . . . Piercing Weapon . | . . . Special Melee Weapon . | . . . Unidentified Prototypes . | . . . Parts Lost 5 | . . 5 Power 1 | . . 1 Propulsion 3 | . . 3 Utility . | . . . Weapon 1 | . . 1 Highest Loss Streak 3 | . . 3 To Critical Strikes . | . . . Average Slot Usage (%) 99 | . 100 99 Engine 14 | . 14 14 Wheel 27 | . 28 27 Device 14 | . 14 14 Storage 14 | . 14 14 Energy Cannon 12 | . . 18 Ballistic Gun 12 | . 28 5 Ballistic Cannon 2 | . . 3 Peak Build Rating 19 | 9 10 19 Average Rating 12 | 6 8 14 On Entrance 5 | . 9 8 Naked Turns . | . . . Heaviest Build 102 | 14 89 102 Greatest Support 40 | 32 32 40 Greatest Overweight (x) 3 | . 2 3 Average Overweight (x) 1 | . 1 2 Largest Inventory Capacity 25 | 8 25 25 Average Capacity 23 | 7 22 25 Most Carried 25 | 7 10 25 Average Carried 17 | 2 8 22 Final Capacity 25 | 8 25 25 Final Carried 22 | 5 10 22 Class Distribution -------------------- 71% | Mutant 28% | Scavenger-Mutant Dominant Class ---------------- Mutant | -10/Materials Mutant | -10/Subcaves Resources | -11 -10 -10 ----------- Run | Yrd Mat Sub Matter Collected 739 | 298 . 441 Remotely . | . . . Salvage Created 587 | 131 16 440 Parts 37 | 8 2 27 Haulers Intercepted . | . . . Recyclers Shooed . | . . . Parts Field Recycled . | . . . Retrieved Matter . | . . . Parts Self-Destructed 10 | . . 10 Prevented . | . . . Kills | -11 -10 -10 ------- Run | Yrd Mat Sub Combat Hostiles Destroyed 11 | . . 11 Guns 2 | . . 2 Cannons 8 | . . 8 Classes Destroyed 6 | 2 1 3 Tunneler 2 | 2 . . Recycler 1 | 1 . . Watcher 1 | . 1 . Grunt 1 | . . 1 Sentry 1 | . . 1 Subdweller 9 | . . 9 Best Kill Streak 3 | 3 1 2 Combat Bots Only 2 | . . 2 Max Kills in Single Turn 1 | 1 1 1 Gunslinging . | . . . Exploded . | . . . Melee . | . . . Uniques/NPCs Destroyed . | . . . Combat | -11 -10 -10 -------- Run | Yrd Mat Sub Hostile Shots Fired 52 | . . 52 Missed 14 | . . 14 Damage Taken 1049 | . . 1049 Core 251 | . . 251 Absorbed by Shields . | . . . Core Remaining (%) 100 | 100 . . Volleys Fired 80 | 7 4 69 Largest 2 | 2 2 2 Hottest 160 | 40 40 160 Shots Fired 130 | 14 8 108 Gun 41 | 14 8 19 Cannon 89 | . . 89 Launcher . | . . . Special . | . . . Kinetic 61 | 14 8 39 Thermal 69 | . . 69 Explosive . | . . . Electromagnetic . | . . . Robot Hit Streak 34 | 5 1 34 Robot Miss Streak 2 | 2 2 2 Penetration Max . | . . . Secondary Targets . | . . . Shots Hit Robots 70 | 8 3 59 Core Hits 23 | 5 2 16 Critical Kills 1 | . . 1 Critical Parts Destroyed . | . . . Critical Strikes 1 | . . 1 Meltdown 1 | . . 1 Melee Attacks . | . . . Impact . | . . . Slashing . | . . . Piercing . | . . . Sneak Attacks . | . . . Combat Hostiles . | . . . Follow-up Attacks . | . . . Damage Inflicted 1253 | 79 28 1146 Guns 280 | 79 28 173 Cannons 973 | . . 973 Explosions . | . . . Melee . | . . . Ramming . | . . . Kinetic 427 | 79 28 320 Thermal 826 | . . 826 Explosive . | . . . Electromagnetic . | . . . Impact . | . . . Slashing . | . . . Piercing . | . . . Highest Corruption 3 | . 3 3 Average Corruption 2 | . 2 3 Corruption Purged . | . . . Corruption Blocked . | . . . Effects 29 | . 5 24 Message Errors 4 | . 1 3 Matter Fused 10 | . 2 8 Heat Flow Errors 5 | . . 5 Energy Discharges 2 | . . 2 Data Loss (minor) 2 | . . 2 Data Loss (major) 3 | . 2 1 Misfires 3 | . . 3 Overload Shots . | . . . Overflow Damage . | . . . Projectiles . | . . . Explosions . | . . . Melee . | . . . Knockbacks 4 | . . 4 Impact . | . . . Kinetic 3 | . . 3 Secondary 1 | . . 1 Self-Inflicted Damage . | . . . Shots . | . . . Rammed . | . . . Targets Rammed . | . . . Kicked . | . . . Crushed . | . . . Highest Temperature 252 | . . 252 Average Temperature 98 | . . 98 Received Heat Transfer 102 | . . 102 Siege Activations . | . . . Robots Corrupted . | . . . Combat Hostiles . | . . . Parts Fried . | . . . Impact Corruptions . | . . . Robots Melted 1 | . . 1 Combat Hostiles 1 | . . 1 Parts Melted 2 | . . 2 Heat Transferred 1110 | . . 1110 Parts Sabotaged . | . . . Parts Stolen . | . . . Parts Stripped . | . . . Power Chain Reactions . | . . . Alert | -11 -10 -10 ------- Run | Yrd Mat Sub Peak Influence 16 | 15 16 . Initial 9 | . 9 . Average 10 | 4 11 . Maximum Alert Level . | . . . Low Security (%) 100 | 100 100 . Level 1 . | . . . Level 2 . | . . . Level 3 . | . . . Level 4 . | . . . Level 5 . | . . . High Security . | . . . Max Security . | . . . Squads Dispatched 1 | . 1 . Investigation 1 | . 1 . Extermination . | . . . Reinforcement . | . . . Assault . | . . . Garrison . | . . . Intercept . | . . . Searches Triggered . | . . . Construction Impeded . | . . . Haulers Reinforced . | . . . Active Scanning Responses . | . . . Cargo Convoy Interrupts . | . . . Stealth | -11 -10 -10 --------- Run | Yrd Mat Sub Distress Signals . | . . . Communications Jammed . | . . . Distress Signals . | . . . Times Spotted 15 | . 2 13 Peak Tracking Total 2 | . 2 2 Tactical Retreats . | . . . Traps | -11 -10 -10 ------- Run | Yrd Mat Sub Traps Triggered 8 | . 2 6 Indirectly . | . . . Trap Hack Attempts . | . . . Triggered . | . . . Disarmed . | . . . Reprogrammed . | . . . Reused . | . . . Traps Extracted . | . . . Installed . | . . . Triggered . | . . . Machines | -11 -10 -10 ---------- Run | Yrd Mat Sub Machines Disabled 1 | . . 1 Max in Single Turn 1 | . . 1 Machines Repaired . | . . . Machines Dismantled . | . . . Machines Sabotaged . | . . . Overloaded Fab Kills . | . . . Hacking | -11 -10 -10 --------- Run | Yrd Mat Sub Machines Accessed 5 | . 3 2 Terminals 3 | . 3 . Fabricators . | . . . Repair Stations . | . . . Recycling Units . | . . . Scanalyzers . | . . . Garrison Access . | . . . Total Hacks 16 | . 11 5 Successful 9 | . 4 5 Failed 7 | . 7 . Catastrophic 2 | . 2 . Database Lockouts . | . . . Manual 9 | . 9 . Terminals 11 | . 11 . Fabricators . | . . . Repair Stations . | . . . Recycling Units . | . . . Scanalyzers . | . . . Garrison Access . | . . . Terminal Hacks 6 | . 1 5 Record 4 | . . 4 Terminal Index 1 | . 1 . Derelict Proto ID Bank 1 | . . 1 Fabricator Hacks . | . . . Repair Station Hacks . | . . . Recycling Unit Hacks . | . . . Scanalyzer . | . . . Garrison Access Hacks . | . . . Unauthorized Hacks 3 | . 3 . Terminals 3 | . 3 . Botnet 2 | . 2 . Operators 1 | . 1 . Fabricators . | . . . Repair Stations . | . . . Recycling Units . | . . . Scanalyzers . | . . . Garrison Access . | . . . Data Cores Recovered . | . . . Used . | . . . Hacking Detections 3 | . 3 . Full Trace Events 1 | . 1 . Feedback Events . | . . . Feedback Blocked . | . . . Robot Schematics Acquired . | . . . Robots Built . | . . . Authchips . | . . . Time . | . . . Total Robot Build Rating . | . . . Part Schematics Acquired . | . . . Parts Built . | . . . Authchips . | . . . Time . | . . . Total Part Build Rating . | . . . Parts Repaired . | . . . Time . | . . . Parts Recycled . | . . . Recycled Matter . | . . . Retrieved Matter . | . . . Retrieved Components . | . . . Parts Scanalyzed . | . . . Part Schematics Acquired . | . . . Parts Damaged . | . . . Bothacking | -11 -10 -10 ------------ Run | Yrd Mat Sub Used RIF Installer . | . . . Robots Hacked . | . . . Non-combat . | . . . Combat . | . . . Robot Hacks Applied . | . . . Relay Couplers Released . | . . . Fabnet Peak Effective % . | . . . Robots Rewired . | . . . Allies Hacked . | . . . Hacks Repelled . | . . . Allies | -11 -10 -10 -------- Run | Yrd Mat Sub Total Allies . | . . . Largest Group . | . . . Highest-Rated Group . | . . . Highest-Rated Ally . | . . . Total Orders . | . . . Ally Attacks . | . . . Total Damage . | . . . Kills . | . . . Allies Corrupted . | . . . Allies Melted . | . . . Intel | -11 -10 -10 ------- Run | Yrd Mat Sub Robot Analysis Total . | . . . Derelict Logs Recovered 2 | . . 2 Drone Launches . | . . . Drone Recoveries . | . . . Exploration | -11 -10 -10 ------------- Run | Yrd Mat Sub Turns Passed 1895 | 84 519 1292 Spaces Moved 1064 | 47 242 775 Core 1 | 1 . . Treads . | . . . Legs . | . . . Wheels 1063 | 46 242 775 Hover . | . . . Flight . | . . . Fastest Speed 50 | 50 100 129 Average Speed 126 | 98 117 130 Slowest Speed 145 | 100 130 145 Overloaded Moves . | . . . Propulsion Burnouts . | . . . Robots Hopped . | . . . Cave-ins Triggered . | . . . Exploration Rate (%) 35 | 3 47 57 Regions Visited 2 Branch Regions 1 Pre-discovered Areas 1 | . . 1 Known Exits Taken . | . . . Unknown Exits Taken 2 | 1 1 . Scrap Searched 10 | . . 10 Spaces Dug 4 | . . 4 Terrain Destroyed 9 | . . 9 Melee . | . . . Projectile 9 | . . 9 AOE . | . . . Terrain Rammed . | . . . Walls Destroyed . | . . . Machines Disabled . | . . . Actions | -11 -10 -10 --------- Run | Yrd Mat Sub Total 1486 | 69 468 949 Wait 255 | . 213 42 Move 1062 | 46 241 775 Hop . | . . . Pick Up 41 | 7 5 29 Fast Attach 7 | 7 . . Attach 9 | . . 9 Detach . | . . . Swap 13 | . 3 10 Drop 19 | 2 2 15 Fire 80 | 7 4 69 Melee . | . . . Ram . | . . . Kick . | . . . Crush . | . . . Escape Stasis . | . . . Rewire . | . . . Trap . | . . . Miscellaneous . | . . . Route ------- -11/Scrapyard -10/Materials (discovered 3 exits: [*Mat] / [*Min] / *Sub) -10/Subcaves (discovered 3 exits: [*Mat x2] / Rec) History --------- Turn | Location | Event 30 | -11/Scrapyard | Discovered new exit (range 15) 85 | -11/Scrapyard | Entered Materials 119 | -10/Materials | Discovered new exit (range 10) 194 | -10/Materials | Discovered new exit (range 11) 305 | -10/Materials | Build established: Mutant 429 | -10/Materials | Discovered new exit (range 5) 604 | -10/Materials | Entered Subcaves 610 | -10/Subcaves | Discovered new exit (range 7) 642 | -10/Subcaves | Discovered new exit (range 8) 753 | -10/Subcaves | Identified exit to Recycling 872 | -10/Subcaves | Learned 2 Materials zone layouts 881 | -10/Subcaves | Lost 3 parts (1p2n) 922 | -10/Subcaves | A swath of the cavern ceiling suddenly collapsed 1073 | -10/Subcaves | Visited 4L-MR0's lab 1089 | -10/Subcaves | Found Gun Armor 1137 | -10/Subcaves | Build established: Scavenger-Mutant 1150 | -10/Subcaves | Learned location of Zion (-7) 1150 | -10/Subcaves | Met a Zionite searching for "candidates" 1203 | -10/Subcaves | Shifting Twisted Machinery released Flamer 1208 | -10/Subcaves | Shifting Twisted Machinery released Battle Cannon 1373 | -10/Subcaves | Disturbed a concealed Subdweller 1381 | -10/Subcaves | Core integrity fell below 50% 1482 | -10/Subcaves | Shifting Twisted Machinery released Riot Gun 1483 | -10/Subcaves | Shifting Twisted Machinery released Sub. Beam Cannon 1511 | -10/Subcaves | Shifting Twisted Machinery released Mak. Laser 1511 | -10/Subcaves | Shifting Twisted Machinery released Mak. Light Armor Plating 1646 | -10/Subcaves | Visited Clippyterm 1650 | -10/Subcaves | Learned Factory fabricator intel 1650 | -10/Subcaves | Learned 40 Factory zone layouts 1678 | -10/Subcaves | Build established: Mutant 1889 | -10/Subcaves | Core integrity fell below 20% 1896 | -10/Subcaves | Destroyed by AH-HRW(R) with Subdweller Machine Gun Last Messages --------------- It looks like you're after the notorious thief from 0b1. I don't know where they are, but my data indicates that someone they're looking for is frequently seen in Scraptown. 01652_ System corrupted: Matter fused (-8). 01723_ System corrupted: FCS attempts to trigger Battle Cannon. 01723_ System corrupted: Battle Cannon misfires. 01752_ System corrupted: Energy discharge (-60). 01760_ Searching scrap... 01760_ Found Riot Gun. 01760_ Found 69 Matter. 01761_ Acquired 32 matter. 01761_ Searching scrap... 01761_ Found Mak. Shrapnel Gun. 01761_ Found 39 Matter. 01771_ IM-RQF(R) destroyed. 01777_ Acquired 10 matter. 01810_ 3G51XZNY35#OJFN0OZIJD9WD8:ET&P%YB< 01886_ AH-HRW(R) knocked back. 01887_ Sub. Beam Cannon destroyed. 01894_ AH-HRW(R) knocked back. Map ----- +----------------------------------------------------+ | # # ####### #######?????#####?????????????? | | # #####?### ## ###?????## ###????????????? | | #####??## #####? ###????????????? | | #### ######## #### ###???????????? | | ##### ######## ###??????????? | | ##### ## #### ##??????????? | | # ##### ## ###??????????? | | # ####### #### ##???????????? | | ## ###### #### ###?? #???????????? | | ######## ##### ######?? ??????????????? | | ####### ## ###### # ####### ? ??????????????? | | ################# ### ##???????????????? | | ## ## ########### ###???????????????? | | # ########## ##????????????????? | | # ######## ####### ##????????????????? | | ## # # ######## ##????????????????? | | ## ##?????? ????????????????? | | ## ###???????###"????????????????? | | ## ######## # ########## ?### ????????????????? | | # #################?##### ????? "#?????????????? | | # ##############????## #####??"##?????????????? | | ## ###?????????#### ######%"####"##????????? | | ## ###????######## %#% ###% ### ##????????? | | ###????###### R "" ##????????? | | ####??## R ""%% ##????????? | | ####### #@## # ###????????? | | ###### ###### ##### ##???##"?????????? | | # ###### #### #### "###???????????????? | | ## ##### ### ##???"###???????????????? | | ## ##### ####???"##????????????????? | | ## ##### ### ####??????????????????????? | | ## ### #######????????????????????????? | | ## #######????????????????????????? | | #### ##?????????????????????????????? | | ##### ###?????????????????????????????? | | ##?#### #########?????????????????????????????? | | ##??###############??????????????????????????????? | | ##???########????????????????????????????????????? | | ?????????????????????????????????????????????????? | | ?????????????????????????????????????????????????? | | ?????????????????????????????????????????????????? | | ?????????????????????????????????????????????????? | | ?????????????????????????????????????????????????? | | ?????????????????????????????????????????????????? | | ?????????????????????????????????????????????????? | | ?????????????????????????????????????????????????? | | ?????????????????????????????????????????????????? | | ?????????????????????????????????????????????????? | | ?????????????????????????????????????????????????? | | ?????????????????????????????????????????????????? | +----------------------------------------------------+ Best States ------------- Heat Dissipation 25 Coolant Potential 50 Energy Generation 15 Energy Capacity 250 Matter Stores 300 Matter Capacity 300 Sight Range 16 Terrain Scan Range 16 Terrain Scan Density 10 Evasion (%) 40 Item Schematics ----------------- None Robot Schematics ------------------ None Fabricated ------------ Nothing Alien Tech Used ----------------- None Achievements -------------- None Challenges ------------ None Game ------ Seed OvertunedRocketLog Manual? 0 Play Time 00:26:19 Cumulative 181.0 hours Start 2025.05.03 @ 14:59:44 End 2025.05.03 @ 15:27:54 Sessions 1 Manual Loads 0 Difficulty Rogue Special Mode None Game No. 82 Rogue 39 Adventurer 43 Explorer 0 Win Type - Total 5 Types 3/0/1/0/0/0/0/1/0 Lore% 62 Gallery% 68 Achievement% 60 Wizard Run 0 Options --------- Layout 0 ASCII 0 Keyboard 0 Movement Mouse Keybinds 0 Fullscreen 1 Font 24/Smallcaps Map View 76x50 Zoom Use 0% Tactical HUD 1 Map Filters NONE Filters NONE Steam 1 RUN: c1625a99-5b8e-4afe-a6d8-2f0f98f80f9a